bitfinex-derivatives/quotes_SOLF0:USTF0_20251126
["timestamp","ask_amount","ask_price","bid_price","bid_amount"]
[1764180727264,229.04699914,142.32,142.31,11.55]
[1764180727452,98.3416,142.4,142.3,6.326]
[1764180727453,11.19,142.43,142.33,98.3834]
[1764180727653,120.19,142.43,142.33,26.88]
[1764180727857,11.19,142.42,142.31,26.88]
[1764180728070,11.19,142.42,142.3,98.4084]
[1764180728367,109.0,142.43,142.35,0.04647803]
[1764180728368,0.05164459,142.37,142.35,0.04647803]
[1764180728553,0.04641134,142.37,142.35,0.04647803]
[1764180728762,0.04641134,142.37,142.35,99.82187803]
[1764180728963,0.04641134,142.37,142.35,106.14557803]
[1764180729165,109.0,142.43,142.35,99.82187803]
[1764180729367,109.0,142.45,142.35,26.90647803]
[1764180729664,109.0,142.45,142.34,132.64937818]
[1764180729857,207.3092,142.45,142.34,7.41007818]
[1764180730057,0.05339841,142.41,142.38,0.05320611]
[1764180731565,11.34339841,142.41,142.38,0.05320611]
[1764180731757,0.05339841,142.41,142.38,0.05320611]
[1764180735971,0.05339841,142.41,142.39,6.322]
[1764180736172,0.05339841,142.41,142.38,98.40720611]
[1764180736173,98.0542,142.45,142.38,0.05320611]
[1764180736373,82.57831144,142.45,142.41,98.3327]
[1764180736675,82.57831144,142.45,142.43,104.6398]
[1764180736872,82.57831144,142.45,142.3,6.17356329]
[1764180737077,82.57831144,142.45,142.37,98.3617]
[1764180737378,0.05196683,142.42,142.4,0.05246498]
[1764180737877,0.05196683,142.42,142.4,6.37396498]
[1764180738280,0.05196683,142.42,142.4,0.05246498]
[1764180738864,0.05196683,142.42,142.4,6.37406498]
[1764180739072,0.05196683,142.42,142.4,104.71516498]
[1764180739280,0.05196683,142.42,142.4,0.05246498]
[1764180740174,11.34196683,142.42,142.4,0.05246498]
[1764180740380,11.34196683,142.42,142.34,98.3817]
[1764180740564,11.29,142.42,142.33,98.3856]
[1764180740766,11.29,142.42,142.31,98.4015]
[1764180741079,17.6113,142.42,142.33,6.3248]
[1764180741282,0.0480194,142.39,142.36,0.04441504]
[1764180742171,0.0480194,142.39,142.3,98.4086]
[1764180742172,11.3380194,142.39,142.3,98.4086]
[1764180742369,11.29,142.39,142.28,98.4239]
[1764180742579,11.29,142.39,142.24,98.4501]
[1764180742580,11.29,142.36,142.24,98.4501]
[1764180742875,11.29,142.35,142.24,98.4488]
[1764180743082,11.29,142.35,142.23,98.4577]
[1764180743278,11.34395555,142.3,142.28,0.05018415]
[1764180743478,11.33913675,142.3,142.28,0.05018415]
[1764180743690,0.04913675,142.3,142.28,0.05018415]
[1764180744183,11.33913675,142.3,142.2,98.4781]
[1764180744373,11.29,142.3,142.2,98.4781]
[1764180744573,11.29,142.3,142.2,98.479]
[1764180745082,0.05279225,142.26,142.24,0.05054562]
[1764180746177,12.74279225,142.26,142.16,98.5016]
[1764180746376,11.29,142.26,142.17,98.5]
[1764180746776,11.29,142.26,142.19,6.3309]
[1764180747090,11.29,142.26,142.14,98.5177]
[1764180747277,11.29,142.23,142.21,0.04502788]
[1764180747477,11.29,142.23,142.17,6.332]
[1764180747988,0.05404001,142.24,142.17,6.332]
[1764180747989,0.05404001,142.24,142.19,6.3308]
[1764180748182,0.05404001,142.24,142.16,98.5068]
[1764180748489,17.618,142.27,142.18,6.3314]
[1764180748679,11.29,142.27,142.19,98.4864]
[1764180748880,0.04667826,142.24,142.18,98.493]
[1764180749082,0.04667826,142.24,142.2,6.3308]
[1764180749586,0.04667826,142.24,142.18,6.3315]
[1764180750585,11.33667826,142.24,142.15,6.3327]
[1764180750887,0.05414902,142.21,142.15,6.3327]
[1764180751689,0.05414902,142.21,142.06,11.44935644]
[1764180751690,11.29,142.2,142.07,98.5681]
[1764180751887,0.04629367,142.15,142.08,98.5623]
[1764180752188,0.04629367,142.15,142.11,6.3345]
[1764180752688,0.04629367,142.15,142.12,6.3341]
[1764180752891,0.04629367,142.15,142.12,98.5338]
[1764180753284,0.04629367,142.15,142.13,104.861]
[1764180753686,0.04629367,142.15,142.13,6.3335]
[1764180753886,0.04629367,142.15,142.12,98.5349]
[1764180754083,0.04629367,142.15,142.13,98.528]
[1764180754995,0.04629367,142.15,142.13,104.8617]
[1764180755290,11.29,142.23,142.17,6.332]
[1764180756185,11.29,142.2,142.08,98.5609]
[1764180756389,11.29,142.16,142.14,0.04600584]
[1764180758196,11.29,142.16,142.02,98.6039]
[1764180758401,11.29,142.16,142.06,98.5754]
[1764180758694,11.29,142.16,142.08,6.3359]
[1764180759289,0.0530618,142.13,142.08,6.3359]
[1764180759489,0.0530618,142.13,142.09,6.3352]
[1764180759694,0.0530618,142.13,142.09,98.5541]
[1764180760088,0.0530618,142.13,142.11,6.3345]
[1764180760586,0.0530618,142.13,142.08,98.5626]
[1764180760993,0.0530618,142.13,142.07,98.5695]
[1764180761195,0.0530618,142.13,142.09,6.3354]
[1764180761394,0.0530618,142.13,142.07,98.5695]
[1764180762499,11.1030618,142.13,142.04,98.5858]
[1764180762700,11.1030618,142.13,142.05,98.5797]
[1764180762701,0.04668911,142.1,142.05,98.5797]
[1764180762902,0.04668911,142.1,142.08,6.3359]
[1764180764701,0.04668911,142.1,142.06,6.3368]
[1764180764905,0.04668911,142.1,142.05,98.5797]
[1764180765399,0.04668911,142.1,142.08,6.336]
[1764180765791,26.32,142.22,142.08,1.44552267]
[1764180765987,11.05,142.21,142.11,98.5389]
[1764180766189,11.05,142.21,142.12,98.534]
[1764180766390,11.05,142.21,142.09,98.5541]
[1764180766596,11.05,142.2,142.12,6.3341]
[1764180766790,0.04956397,142.17,142.15,0.04840268]
[1764180767293,82.57831144,142.26,142.21,98.4681]
[1764180767499,82.57831144,142.26,142.2,98.4787]
[1764180767500,82.57831144,142.26,142.23,6.3292]
[1764180767797,82.57831144,142.26,142.23,98.4584]
[1764180768190,82.57831144,142.26,142.2,124.7787]
[1764180768396,0.0530359,142.25,142.23,0.05379367]
[1764180769198,0.0530359,142.25,142.23,6.38299367]
[1764180769401,37.37,142.35,142.25,98.4386]
[1764180769795,37.37,142.35,142.27,6.3275]
[1764180769995,37.37,142.35,142.24,98.4485]
[1764180770205,11.05,142.34,142.22,98.4627]
[1764180770396,0.05179696,142.29,142.27,0.05132362]
[1764180770599,0.04644222,142.29,142.27,0.05132362]
[1764180771015,0.04644222,142.29,142.27,6.37882362]
[1764180771398,0.04644222,142.29,142.27,0.05132362]
[1764180772609,0.04644222,142.29,142.27,6.37872362]
[1764180774006,0.04644222,142.29,142.27,0.05132362]
[1764180774599,11.09644222,142.29,142.2,98.4768]
[1764180774798,11.05,142.29,142.2,98.4768]
[1764180775004,11.05,142.34,142.21,98.4717]
[1764180775206,11.05,142.34,142.25,98.4444]
[1764180775699,0.05370643,142.31,142.28,0.04696746]
[1764180776107,0.05370643,142.31,142.28,6.37396746]
[1764180776506,0.05370643,142.31,142.28,0.04696746]
[1764180780209,0.05370643,142.31,142.29,6.3266]
[1764180780411,82.57831144,142.38,142.32,98.3958]
[1764180780615,82.57831144,142.38,142.29,98.4171]
[1764180780808,82.57831144,142.38,142.3,124.6071]
[1764180781001,82.57831144,142.38,142.32,6.3252]
[1764180781204,93.62831144,142.38,142.28,98.4211]
[1764180781407,82.57831144,142.38,142.31,98.4024]
[1764180781716,0.04595483,142.34,142.32,0.05062678]
[1764180782607,0.04595483,142.34,142.32,6.37592678]
[1764180782915,0.04595483,142.34,142.32,7.77592678]
[1764180783308,0.04595483,142.34,142.32,6.37592678]
[1764180783505,0.04595483,142.34,142.33,26.2]
[1764180784400,0.04595483,142.34,142.32,32.57592678]
[1764180784809,0.04595483,142.34,142.32,6.37592678]
[1764180785908,0.04595483,142.34,142.32,0.05062678]
[1764180786615,0.04595483,142.34,142.32,6.37592678]
[1764180788307,0.04595483,142.34,142.32,0.05062678]
[1764180788516,10.18595483,142.34,142.32,0.05062678]
[1764180788919,0.04595483,142.34,142.32,0.05062678]
[1764180789317,10.18595483,142.34,142.32,0.05062678]
[1764180789715,10.18595483,142.34,142.27,26.2]
[1764180789916,10.18595483,142.34,142.23,98.4544]
[1764180790109,10.14,142.34,142.24,26.2]
[1764180790315,82.57831144,142.38,142.3,98.408]
[1764180790515,10.14,142.37,142.28,26.2]
[1764180790721,16.4638,142.36,142.29,6.3266]
[1764180790925,10.18771326,142.34,142.31,0.04860139]
[1764180793419,0.04771326,142.34,142.31,0.04860139]
[1764180793724,0.04771326,142.34,142.32,6.3253]
[1764180794110,0.04771326,142.34,142.33,26.18]
[1764180794314,0.04771326,142.34,142.33,1.4]
[1764180794624,0.04771326,142.34,142.33,26.18]
[1764180795023,0.04771326,142.34,142.33,27.58]
[1764180796221,0.04771326,142.34,142.33,26.18]
[1764180797423,92.23831144,142.49,142.44,6.3198]
[1764180797628,82.57831144,142.49,142.45,98.3061]
[1764180797824,82.57831144,142.49,142.44,98.3122]
[1764180798123,82.57831144,142.49,142.45,6.3194]
[1764180798318,0.05414523,142.48,142.46,0.05246362]
[1764180799120,0.05414523,142.48,142.46,6.37146362]
[1764180799526,0.05414523,142.48,142.46,0.05246362]
[1764180800231,11.11414523,142.48,142.38,105.75219012]
[1764180800416,9.66,142.48,142.35,105.77319012]
[1764180800820,15.979,142.47,142.38,6.3226]
[1764180801225,0.04697539,142.44,142.41,0.05417371]
[1764180803332,9.70697539,142.44,142.41,0.05417371]
[1764180804532,9.70697539,142.44,142.37,6.323]
[1764180804829,9.70697539,142.44,142.34,124.5389]
[1764180804830,9.66,142.43,142.34,98.3789]
[1764180805127,9.66,142.43,142.36,6.3235]
[1764180805330,9.66,142.43,142.35,98.3736]
[1764180805828,0.04979552,142.4,142.38,0.04383451]
[1764180808132,9.70979552,142.4,142.38,0.04383451]
[1764180808326,9.70979552,142.4,142.34,6.3244]
[1764180808536,9.66,142.4,142.34,6.3244]
[1764180809327,0.04468006,142.38,142.34,6.3244]
[1764180809634,9.70468006,142.38,142.32,6.3253]
[1764180809828,9.71266507,142.36,142.32,6.3253]
[1764180812028,0.05266507,142.36,142.33,6.3248]
[1764180813536,9.71266507,142.36,142.33,6.3248]
[1764180813737,0.05266507,142.36,142.34,6.3243]
[1764180814732,0.05266507,142.36,142.35,5.11041657]
[1764180814936,0.05266507,142.36,142.35,5.11115028]
[1764180815127,26.16,142.42,142.35,104.88345028]
[1764180815328,26.16,142.42,142.35,98.3723]
[1764180815523,26.16,142.42,142.36,6.3235]
[1764180815836,26.16,142.42,142.33,124.5465]
[1764180815837,26.16,142.42,142.35,98.3741]
[1764180816131,0.05216341,142.4,142.38,6.3227]
[1764180816526,0.05216341,142.4,142.37,0.05150965]
[1764180817537,0.05216341,142.4,142.37,6.37460965]
[1764180817725,0.05216341,142.4,142.37,98.41030965]
[1764180818335,0.05216341,142.4,142.38,6.3226]
[1764180819135,0.05216341,142.4,142.38,32.4626]
[1764180819336,9.66,142.46,142.42,6.3206]
[1764180819738,26.16,142.49,142.41,98.3342]
[1764180820032,26.16,142.49,142.4,98.3392]
[1764180820033,9.66,142.48,142.39,98.3432]
[1764180820330,0.05049796,142.45,142.44,6.32]
[1764180820926,0.05049796,142.45,142.42,6.37026029]
[1764180821129,0.05049796,142.45,142.42,98.37386029]
[1764180821524,0.05049796,142.45,142.43,6.3203]
[1764180823830,14.87,142.5,142.46,6.3189]
[1764180824739,5.0,142.5,142.46,6.3189]
[1764180825037,5.0,142.5,142.47,32.51222077]
[1764180825038,0.04815315,142.49,142.47,32.51222077]
[1764180825240,0.04815315,142.49,142.47,6.37222077]
[1764180825433,5.315e-05,142.5,142.47,6.37222077]
[1764180825632,5.315e-05,142.5,142.48,26.14]
[1764180826036,5.315e-05,142.5,142.48,32.4582]
[1764180826435,0.04888191,142.5,142.48,32.4582]
[1764180826943,0.04888191,142.5,142.48,6.3182]
[1764180827429,0.04888191,142.5,142.47,0.05372077]
[1764180828646,0.04888191,142.5,142.47,6.37242077]
[1764180828843,9.91888191,142.5,142.47,0.05372077]
[1764180832348,0.04888191,142.5,142.47,6.37242077]
[1764180832946,9.91888191,142.5,142.47,6.37242077]
[1764180833142,9.91888191,142.5,142.47,0.05372077]
[1764180834751,9.91888191,142.5,142.47,6.37242077]
[1764180835249,0.04888191,142.5,142.47,6.37242077]
[1764180835650,0.04888191,142.5,142.48,6.3181]
[1764180835850,9.91888191,142.5,142.48,6.3181]
[1764180836450,9.91888191,142.5,142.47,0.05372077]
[1764180839356,9.91888191,142.5,142.47,6.37242077]
[1764180840060,9.91888191,142.5,142.47,0.05372077]
[1764180840257,2.03003734,142.52,142.47,98.34092077]
[1764180840561,3.734e-05,142.52,142.5,6.3173]
[1764180840757,9.87003734,142.52,142.5,6.3173]
[1764180841059,28.76103383,142.58,142.51,6.3169]
[1764180841253,28.76103383,142.58,142.53,0.05115778]
[1764180841254,0.04977909,142.56,142.53,0.05115778]
[1764180842858,9.87,142.55,142.53,0.05115778]
[1764180843652,9.87,142.54,142.44,4.38]
[1764180843957,6.3168,142.52,142.44,4.38]
[1764180844160,9.87,142.51,142.44,4.38]
[1764180844759,9.87,142.48,142.46,0.04906346]
[1764180845154,0.04811588,142.49,142.46,4.47906346]
[1764180846265,0.04811588,142.49,142.47,9.8986]
[1764180846662,0.04811588,142.49,142.48,3.58]
[1764180847154,30.20274371,142.58,142.51,3.54]
[1764180847355,8.84,142.58,142.51,3.54]
[1764180847669,8.84,142.58,142.52,6.3164]
[1764180848165,8.89358091,142.56,142.54,0.04552486]
[1764180848665,10.29358091,142.56,142.47,3.54]
[1764180848860,8.84,142.56,142.47,3.54]
[1764180849366,8.84,142.55,142.49,6.3178]
[1764180849561,8.88712633,142.53,142.51,0.04816195]
[1764180851562,9.14,142.52,142.43,127.9166]
[1764180851761,9.14,142.52,142.44,98.3119]
[1764180852161,9.14,142.52,142.47,6.3187]
[1764180852359,9.14,142.52,142.41,101.6603]
[1764180852559,9.19249884,142.49,142.47,0.05396143]
[1764180852760,9.18984723,142.49,142.47,0.05396143]
[1764180853669,9.18984723,142.49,142.41,3.33]
[1764180853869,9.18984723,142.49,142.41,101.6611]
[1764180854163,9.18984723,142.49,142.41,3.33]
[1764180854565,9.18984723,142.49,142.44,0.04879808]
[1764180855171,9.18984723,142.49,142.45,6.3195]
[1764180856570,9.18984723,142.49,142.45,3.38]
[1764180856571,0.04984723,142.49,142.45,3.38]
[1764180857172,0.04984723,142.49,142.48,6.3183]
[1764180858471,0.04984723,142.49,142.47,0.05244235]
[1764180858672,0.04984723,142.49,142.47,3.43244235]
[1764180858970,0.04984723,142.49,142.47,9.75104235]
[1764180859172,0.04984723,142.49,142.47,6.37104235]
[1764180859376,0.04984723,142.49,142.48,3.38]
[1764180860071,82.57831144,142.54,142.5,98.2683]
[1764180860275,82.57831144,142.54,142.51,3.33]
[1764180860473,9.14,142.64,142.55,101.5654]
[1764180860666,9.14,142.64,142.55,3.33]
[1764180860875,9.14,142.63,142.56,98.2295]
[1764180861170,38.97030891,142.65,142.59,3.33]
[1764180861366,0.0480678,142.61,142.6,9.643]
[1764180861568,38.97030891,142.65,142.61,3.33]
[1764180861778,0.05236334,142.62,142.61,9.6426]
[1764180862177,9.14,142.71,142.63,3.28]
[1764180862573,9.14,142.71,142.63,29.32]
[1764180862777,9.14,142.71,142.61,26.04]
[1764180862975,9.14,142.71,142.6,26.04]
[1764180863179,9.19243431,142.67,142.64,0.04549168]
[1764180863879,9.19243431,142.67,142.56,109.66700968]
[1764180863880,9.19243431,142.67,142.56,3.28]
[1764180864080,9.14,142.65,142.56,3.28]
[1764180864380,9.14,142.63,142.54,6.3154]
[1764180864974,0.04481701,142.6,142.57,0.05371341]
[1764180865171,0.04481701,142.6,142.57,3.33371341]
[1764180865676,0.04481701,142.6,142.59,3.28]
[1764180869075,0.04481701,142.6,142.58,6.3136]
[1764180869277,0.04481701,142.6,142.57,29.33371341]
[1764180870384,0.04481701,142.6,142.57,35.64781341]
[1764180870684,0.04481701,142.6,142.57,9.64781341]
[1764180871181,0.04481701,142.6,142.57,0.05371341]
[1764180871383,9.18481701,142.6,142.57,0.05371341]
[1764180872481,0.04481701,142.6,142.57,0.05371341]
[1764180873584,9.18481701,142.6,142.57,0.05371341]
[1764180874085,9.18481701,142.6,142.52,6.3164]
[1764180874287,9.14,142.6,142.49,29.28]
[1764180874585,9.14,142.6,142.49,3.28]
[1764180874786,9.14,142.58,142.5,6.3174]
[1764180875087,9.14,142.54,142.53,0.04506024]
[1764180875285,9.14,142.54,142.52,0.04490351]
[1764180875986,0.04847735,142.55,142.52,3.32490351]
[1764180876283,0.04847735,142.55,142.52,0.04490351]
[1764180877480,0.04847735,142.55,142.52,6.36130351]
[1764180877882,0.04847735,142.55,142.52,0.04490351]
[1764180878089,0.04847735,142.55,142.53,6.3159]
[1764180878786,0.04847735,142.55,142.52,3.32490351]
[1764180878982,0.04847735,142.55,142.52,0.04490351]
[1764180879388,0.04847735,142.55,142.53,6.3159]
[1764180880488,0.04847735,142.55,142.52,0.04490351]
[1764180880992,0.04847735,142.55,142.52,6.36130351]
[1764180881191,8.4,142.54,142.52,0.04490351]
[1764180883894,8.4,142.54,142.47,98.2926]
[1764180884094,8.4,142.59,142.51,98.2636]
[1764180884394,8.4,142.59,142.54,6.3155]
[1764180884592,8.4,142.59,142.52,100.6471]
[1764180884984,0.04510279,142.57,142.54,0.05014901]
[1764180885383,0.04510279,142.57,142.54,6.36574901]
[1764180886186,8.44510279,142.57,142.54,0.05014901]
[1764180886889,0.04510279,142.57,142.54,6.36564901]
[1764180890901,0.04510279,142.57,142.55,6.3151]
[1764180891597,8.44510279,142.57,142.54,0.05014901]
[1764180895500,8.44510279,142.57,142.47,28.38]
[1764180895798,8.4,142.57,142.47,2.44]
[1764180896186,8.4,142.56,142.5,6.3173]
[1764180896588,8.44697836,142.54,142.5,6.3173]
[1764180896795,8.44697836,142.54,142.51,6.3169]
[1764180897394,8.44697836,142.54,142.49,8.7577]
[1764180897592,8.44697836,142.54,142.46,2.44]
[1764180898300,8.44697836,142.54,142.49,6.3178]
[1764180898606,0.04697836,142.54,142.5,2.44]
[1764180899492,8.44697836,142.54,142.5,2.44]
[1764180899692,0.04697836,142.54,142.5,2.44]
[1764180900294,0.04697836,142.54,142.52,8.7565]
[1764180901196,0.04697836,142.54,142.53,2.44]
[1764180905309,0.04697836,142.54,142.52,8.7565]
[1764180905805,0.04697836,142.54,142.53,2.44]
[1764180909102,7.67,142.61,142.56,1.5]
[1764180909412,64.89030891,142.66,142.56,1.5]
[1764180909413,7.67,142.65,142.57,1.5]
[1764180909611,7.67,142.64,142.6,6.3129]
[1764180909810,7.67,142.64,142.57,1.5]
[1764180910212,38.97030891,142.65,142.61,7.8125]
[1764180910213,0.04927799,142.62,142.61,7.8125]
[1764180911303,38.97030891,142.65,142.64,7.5912]
[1764180911704,7.91,142.64,142.58,125.3736]
[1764180912209,38.97030891,142.65,142.62,1.28]
[1764180912404,38.97030891,142.65,142.63,6.3116]
[1764180912612,46.93022304,142.65,142.6,27.21018245]
[1764180912809,46.93022304,142.65,142.61,1.28]
[1764180913008,39.02022304,142.65,142.62,7.592]
[1764180913203,39.02022304,142.65,142.62,1.28]
[1764180913407,46.93022304,142.65,142.6,99.53038245]
[1764180913714,46.93022304,142.65,142.6,1.33018245]
[1764180913912,46.93022304,142.65,142.6,27.21018245]
[1764180914915,39.02022304,142.65,142.64,1.28]
[1764180915111,39.02022304,142.65,142.63,6.3114]
[1764180915112,39.02022304,142.65,142.63,0.05293738]
[1764180915412,39.02022304,142.65,142.63,7.64443738]
[1764180915604,1.88682304,142.65,142.64,1.28]
[1764180915803,0.04991413,142.65,142.64,27.14]
[1764180916615,0.04991413,142.65,142.64,1.28]
[1764180916913,7.91,142.72,142.66,98.1592]
[1764180917106,7.91,142.72,142.65,98.1631]
[1764180917302,7.91,142.72,142.64,98.1726]
[1764180917615,7.91,142.79,142.67,98.1527]
[1764180917815,7.91,142.79,142.66,98.1583]
[1764180918011,7.91,142.73,142.72,0.04899043]
[1764180918217,7.91,142.73,142.64,98.1689]
[1764180918408,7.91,142.73,142.65,25.86]
[1764180919119,7.91,142.73,142.6,98.2019]
[1764180919120,7.91,142.69,142.59,98.2099]
[1764180919613,7.91,142.68,142.59,6.3133]
[1764180919805,7.91,142.66,142.54,98.2435]
[1764180920214,7.91,142.6,142.59,0.0483268]
[1764180920411,7.91,142.6,142.58,0.04875334]
[1764180920615,7.95993971,142.61,142.58,0.04875334]
[1764180921214,0.04993971,142.61,142.58,0.04875334]
[1764180921513,7.91,142.7,142.61,98.1961]
[1764180921721,7.91,142.7,142.64,6.311]
[1764180922107,7.91,142.7,142.63,124.018]
[1764180922318,7.91,142.7,142.62,7.37766132]
[1764180922510,21.17844881,142.74,142.57,209.0699]
[1764180922511,7.95774267,142.67,142.65,0.04473281]
[1764180922712,7.960111,142.67,142.65,0.04861433]
[1764180924021,7.960111,142.67,142.58,105.59016132]
[1764180924022,7.960111,142.67,142.59,25.84]
[1764180924219,7.91,142.67,142.59,124.0462]
[1764180924725,7.91,142.67,142.62,6.312]
[1764180925021,0.04689691,142.66,142.63,0.05325745]
[1764180925216,0.04689691,142.66,142.64,6.311]
[1764180925609,0.04689691,142.66,142.64,32.131]
[1764180926720,0.04689691,142.66,142.64,25.82]
[1764180927517,0.04689691,142.66,142.64,32.1311]
[1764180928225,0.04689691,142.66,142.63,0.05325745]
[1764180928523,0.04689691,142.66,142.63,98.23175745]
[1764180928719,0.04689691,142.66,142.64,25.82]
[1764180929122,0.04689691,142.66,142.64,6.3111]
[1764180929921,0.04689691,142.66,142.57,98.2236]
[1764180929922,7.91,142.65,142.56,98.2306]
[1764180930325,7.91,142.65,142.57,25.82]
[1764180930621,16.43426171,142.79,142.59,6.3133]
[1764180930920,2.03003734,143.11,142.59,6.3133]
[1764180930921,2.03003734,143.11,143.08,97.8703]
[1764180931120,7.0,143.1,143.08,195.7431]
[1764180931430,1.21589043,143.27,143.1,97.8595]
[1764180931611,0.04668806,143.1,143.09,97.8605]
[1764180931812,7.37766132,143.18,143.1,97.8536]
[1764180932117,10.96,143.3,143.15,97.8241]
[1764180932319,84.14,143.34,143.19,97.7942]
[1764180932511,7.4238158,143.23,143.08,97.8674]
[1764180932822,25.86,143.24,143.09,6.80982505]
[1764180933017,0.04491058,143.16,143.1,6.80982505]
[1764180933319,7.91,143.21,143.11,6.80982505]
[1764180933523,7.91,143.21,143.09,97.8627]
[1764180933524,0.05331636,143.12,143.09,97.8627]
[1764180933720,8.59329691,143.27,143.11,97.8474]
[1764180934026,7.91,143.25,143.12,110.67192565]
[1764180934324,4.41610194,143.25,143.13,15.65912565]
[1764180934522,4.41610194,143.25,143.14,15.65912565]
[1764180934719,2.03003734,143.4,143.16,2.83]
[1764180934911,7.37766132,143.33,143.19,6.05646057]
[1764180935118,7.37766132,143.33,143.16,117.27194209]
[1764180935119,0.05275736,143.29,143.27,2.87800405]
[1764180935321,7.37766132,143.38,143.28,6.77818101]
[1764180935521,7.37766132,143.38,143.27,2.83]
[1764180935522,0.05239225,143.29,143.27,0.04817699]
[1764180935715,7.37766132,143.38,143.25,2.83]
[1764180936017,7.37766132,143.38,143.25,2.87492598]
[1764180936018,0.04555612,143.28,143.25,2.87492598]
[1764180936214,7.91,143.37,143.25,100.5823]
[1764180936410,0.0505125,143.28,143.25,2.87778503]
[1764180936615,7.91,143.37,143.25,2.83]
[1764180936921,0.05141543,143.28,143.27,2.83]
[1764180937119,7.91,143.37,143.27,2.83]
[1764180937322,2.03003734,143.4,143.32,2.78]
[1764180938416,0.04781413,143.37,143.35,2.8309535]
[1764180939029,0.04781413,143.37,143.35,0.0509535]
[1764180940323,2.03003734,143.4,143.35,2.8309535]
[1764180940517,3.734e-05,143.4,143.37,2.74]
[1764180941426,0.00054022,143.4,143.38,5.77]
[1764180942218,0.00054022,143.4,143.35,5.8209535]
[1764180942627,0.00054022,143.4,143.36,5.77]
[1764180943126,0.00054022,143.4,143.35,0.0509535]
[1764180943326,0.00054022,143.4,143.35,5.8209535]
[1764180944030,0.00054022,143.4,143.35,0.0509535]
[1764180944031,10.67054022,143.4,143.35,0.0509535]
[1764180945331,10.67054022,143.4,143.28,103.5021]
[1764180945521,10.67,143.4,143.28,103.5021]
[1764180945720,1.21381235,143.46,143.37,97.6727]
[1764180946027,10.67,143.45,143.33,5.77]
[1764180946425,0.0468386,143.4,143.38,0.04571858]
[1764180946626,10.67,143.45,143.38,0.04571858]
[1764180946934,0.04750405,143.4,143.38,0.04571858]
[1764180947135,10.67,143.45,143.38,0.04571858]
[1764180947324,0.05111753,143.4,143.38,0.04571858]
[1764180947521,18.04766132,143.45,143.38,0.04571858]
[1764180947720,0.04471233,143.4,143.38,0.04571858]
[1764180947926,10.67,143.44,143.38,0.04571858]
[1764180948126,10.67,143.44,143.33,5.77]
[1764180948127,10.7226114,143.4,143.29,104.0113]
[1764180948327,10.67,143.4,143.29,109.7813]
[1764180948525,10.67,143.4,143.3,97.7203]
[1764180948733,26.08,143.48,143.29,5.77]
[1764180948734,10.67,143.38,143.29,5.77]
[1764180948935,10.67,143.38,143.25,103.5244]
[1764180949231,10.67,143.38,143.27,5.77]
[1764180949425,0.05269718,143.33,143.3,0.04513597]
[1764180950331,10.72269718,143.33,143.2,124.5287]
[1764180950532,10.67,143.33,143.26,97.747]
[1764180950732,10.67,143.33,143.22,103.5446]
[1764180950733,10.67,143.33,143.22,5.77]
[1764180950933,33.45766132,143.37,143.21,97.7814]
[1764180950934,10.67,143.3,143.21,97.7814]
[1764180951147,10.67,143.3,143.22,97.7738]
[1764180951349,10.67,143.3,143.18,103.5743]
[1764180951546,10.71906825,143.27,143.24,0.05188379]
[1764180951748,10.67,143.27,143.18,5.77]
[1764180951948,10.72244152,143.24,143.21,0.04738294]
[1764180952142,0.05244152,143.24,143.21,5.81738294]
[1764180952339,0.05244152,143.24,143.22,103.5431]
[1764180952543,10.67,143.32,143.26,97.7499]
[1764180952744,10.67,143.37,143.25,103.5235]
[1764180953053,10.67,143.37,143.25,5.77]
[1764180953237,10.67,143.37,143.26,97.7454]
[1764180953641,10.67,143.32,143.3,0.04887122]
[1764180954155,10.67,143.32,143.22,103.5443]
[1764180954156,12.07,143.32,143.22,103.5443]
[1764180954338,10.67,143.32,143.23,103.5408]
[1764180954539,10.67,143.32,143.26,97.7504]
[1764180954745,10.67,143.32,143.25,97.7574]